[Event "Slovakia Open 2022"]
[Site "Bratislava"]
[Date "2022.10.01"]
[Round "6.16"]
[White "Rakhmangulova, Anastasiya"]
[Black "Nemsak, Denis"]
[Result "0-1"]
[ECO "B01"]
[WhiteElo "2244"]
[BlackElo "2012"]
[Annotator "TA"]
[PlyCount "114"]
[EventDate "2022.09.30"]
[EventCountry "SVK"]
[SourceTitle "playchess.com"]
[Source "ChessBase"]
[SourceQuality "1"]
[TimeControl "2700+10"]

{[%evp 13,114,20,30,-1,32,25,20,8,19,9,90,74,110,104,125,16,23,17,22,-8,20,12,72,86,88,97,91,-42,-36,-33,62,17,16,0,79,39,55,51,79,58,42,0,0,0,0,0,52,51,110,4,96,49,21,33,47,0,0,-5,-10,-18,-7,-100,22,31,34,22,4,-12,-10,-9,-9,-67,-67,-67,-67,-67,-67,-67,-67,-72,-63,-66,-61,-94,-57,-166,-141,-29975,-29974,-29974,-29977,-29976,-29978,-29978,-29979,-29980,-29979,-29981,-29982,-29984,-29985,-29984,-29985]} 1. e4 {[%emt 0:00:04]} d5 {[%emt 0:00:05]} 2. exd5 {[%emt 0:00:05]} Nf6 {[%emt 0:00:02]} 3. Bb5+ {[%emt 0:01:02]} Bd7 {[%emt 0:00:03]} 4. Bc4 {[%emt 0:00:11]} Bg4 {[%emt 0:00:04]} 5. f3 {[%emt 0:00:35]} Bc8 {[%emt 0:00:03]} 6. Nc3 {[%emt 0:00:09]} Nbd7 {[%emt 0:00:02]} 7. Ne4 {[%emt 0:03:26]} Nb6 {[%emt 0:01:53][%csl LRc4,LRd5]} 8. Nxf6+ {[%emt 0:04:49] B01: Scandinavian Defence.} gxf6 {[%emt 0:00:06]} 9. Bb3 {[%emt 0:02:33]} Nxd5 {[%emt 0:00:27]} 10. Ne2 {[%emt 0:00:05] [#] The position is equal.} Rg8 $146 {[%emt 0:00:20]} ({Predecessor:} 10... Bf5 11. d4 Qd7 12. Nc3 Nxc3 13. bxc3 O-O-O 14. Be3 e5 15. d5 Ba3 16. Rb1 Rhg8 {0-1 (37) Tumanov,D (1909)-Suominen,A (2002) Helsinki 2012}) 11. O-O {[%emt 0:01:19] With the idea d4.} Bh6 {[%emt 0:03:30]} (11... Bh3 $1 $11 {keeps the balance.} 12. Ng3 h5) 12. Kh1 {[%emt 0:00:59]} Qd6 {[%emt 0:04:15] [#]} 13. d4 $1 {[%emt 0:01:37]} Rg6 {[%emt 0:13:49]} (13... Ne3 $2 14. Bxe3 Bxe3 15. Qd3 $18) 14. f4 {[%emt 0:05:41]} (14. Bxh6 $16 Rxh6 15. g3) 14... f5 $1 $11 {[%emt 0:06:49]} 15. c4 {[%emt 0:01:27]} Nf6 {[%emt 0:00:16]} 16. c5 {[%emt 0:00:17]} Qd7 {[%emt 0:00:06]} 17. d5 {[%emt 0:01:23]} Ne4 {[%emt 0:00:27]} (17... c6 $11) 18. Be3 $36 {[%emt 0:00:12][%mdl 2048] White has strong initiative.} c6 {[%emt 0:01:02]} 19. Qc2 {[%emt 0:01:38]} Bg7 {[%emt 0:03:00]} ({Not} 19... cxd5 20. Rad1 (20. Ba4 Rc6 $16)) 20. Bd4 {[%emt 0:01:45]} ({Better is} 20. Rad1 $16) 20... Bxd4 $1 $15 {[%emt 0:00:12]} (20... cxd5 $2 21. Ba4 Rc6 22. Bxg7 $18) 21. Nxd4 {[%emt 0:00:02]} Qc7 {[%emt 0:00:14]} (21... Qd8 $1 $15) 22. Rac1 {[%emt 0:05:52]} Bd7 {[%emt 0:00:21]} 23. dxc6 {[%emt 0:00:05]} bxc6 {[%emt 0:00:29]} (23... Bxc6 $11 24. Nxc6 (24. Nxf5 O-O-O $19) 24... bxc6) 24. Qc4 {[%emt 0:01:04]} Be6 {[%emt 0:01:37]} 25. Nxe6 {[%emt 0:01:19]} Rxe6 {[%emt 0:00:34]} 26. Qd4 {[%emt 0:00:03] aiming for Qh8+.} (26. g4 $5 Rd8 27. gxf5 $16) 26... Rf6 {[%emt 0:00:05]} 27. Qe5 {[%emt 0:00:18]} Qxe5 {[%emt 0:01:22]} 28. fxe5 {[%emt 0:00:02]} Rh6 {[%emt 0:00:10] Hoping for ...Ng3+.} 29. Kg1 {[%emt 0:00:29]} e6 {[%emt 0:00:00]} (29... Nd2 $11) 30. Ba4 {[%emt 0:01:42]} Kd7 {[%emt 0:01:09]} (30... Rc8 $14) 31. b4 {[%emt 0:00:14]} ({White should try} 31. Rfd1+ $16 Kc7 32. Rc4) 31... Rb8 {[%emt 0:04:23]} (31... Kc7 $1 $11) 32. a3 {[%emt 0:00:28]} (32. Rfd1+ $16 Kc7 33. Rc4) 32... Kc7 $14 {[%emt 0:00:22][%cal Oa7a5]} 33. Rfd1 {[%emt 0:00:10]} Rg6 {[%emt 0:00:46]} 34. Rc2 {[%emt 0:02:25]} (34. Rd3 $14 {might be stronger.}) 34... Rg4 $11 {[%emt 0:00:24][%cal Oa7a5]} 35. Rd4 {[%emt 0:01:09]} a5 {[%emt 0:00:17]} 36. Rc1 $1 {[%emt 0:05:38]} axb4 {[%emt 0:00:18]} 37. axb4 {[%emt 0:00:01] [#]} (37. Bd1 $1 $11 {remains equal.} Rgg8 38. axb4) 37... Ra8 {[%emt 0:00:27]} (37... Rbg8 $1 $17 38. g3 Ng5 39. Rxg4 Nf3+ 40. Kf2 fxg4) 38. Bd1 {[%emt 0:00:02]} ({Much weaker is} 38. b5 cxb5 39. Bxb5 Ra2 $17) 38... Rgg8 {[%emt 0:00:55]} 39. Bf3 {[%emt 0:00:20]} Ng5 {[%emt 0:00:28]} 40. Be2 {[%emt 0:00:02]} Ra2 {[%emt 0:00:04]} 41. Kf1 {[%emt 0:00:01]} Ne4 {[%emt 0:00:06] Threatens to win with ...Nd2+.} 42. Rcd1 {[%emt 0:01:08] Against Nd2+} (42. Rd3 $11) 42... Nc3 $15 {[%emt 0:00:30][%csl LRd1,LRe2] Black is more active.} 43. R1d2 {[%emt 0:00:01]} Rxd2 {[%emt 0:00:13]} (43... Nxe2 $2 44. Rd7+ Kc8 45. Rxa2 Kxd7 46. Ra7+ Kc8 47. Ra8+ Kd7 48. Rxg8 $18) 44. Rxd2 {[%emt 0:00:02]} Nxe2 {[%emt 0:00:03]} 45. Rxe2 {[%emt 0:00:02][%mdl 4096] Endgame KR-KR} Rg4 {[%emt 0:00:02]} 46. Rb2 {[%emt 0:00:34]} Re4 {[%emt 0:00:12]} 47. Kf2 {[%emt 0:00:03]} Rxe5 {[%emt 0:00:00]} 48. Ra2 {[%emt 0:00:19]} Kb7 {[%emt 0:00:02] Prevents Ra7+.} 49. Rd2 {[%emt 0:00:01]} (49. Ra3 $1 $15) 49... Rd5 $19 {[%emt 0:00:01]} 50. Rxd5 {[%emt 0:00:22][%mdl 8192] Loses the game.} (50. Rb2 $17) 50... exd5 $17 {[%emt 0:00:03] KP-KP. Black mates.} 51. Ke3 {[%emt 0:00:05]} Ka6 {[%emt 0:00:08]} 52. Kd4 {[%emt 0:00:05]} Kb5 {[%emt 0:00:01]} 53. Kc3 {[%emt 0:00:07]} f4 {[%emt 0:00:04]} 54. h3 {[%emt 0:00:18]} h6 {[%emt 0:00:05][%cal Bh7h6,Bh6h5][%mdl 32]} 55. Kb3 {[%emt 0:00:04]} d4 {[%emt 0:00:16]} 56. h4 {[%emt 0:00:11]} h5 {[%emt 0:00:03]} 57. Ka3 {[%emt 0:00:01]} Kc4 {[%emt 0:00:08] Weighted Error Value: White=0.36/Black=0.21 (precise)} 0-1

[Event "Slovakia Open 2022"]
[Site "Bratislava"]
[Date "2022.10.01"]
[Round "6.17"]
[White "Babula, Matej"]
[Black "Kijac, Miroslav"]
[Result "1-0"]
[ECO "C06"]
[WhiteElo "1864"]
[BlackElo "2078"]
[Annotator "TA"]
[PlyCount "59"]
[EventDate "2022.09.30"]
[EventCountry "SVK"]
[SourceTitle "playchess.com"]
[Source "ChessBase"]
[SourceQuality "1"]
[TimeControl "2700+10"]

{[%evp 25,59,161,158,-79,472,0,0,0,249,8,0,-10,-17,-170,0,0,0,0,0,0,0,0,225,0,413,381,681,655,1114,1113,1062,1031,895,704,645,635]} 1. e4 {[%emt 0:00:03]} e6 {[%emt 0:00:06]} 2. d4 {[%emt 0:00:04]} d5 {[%emt 0:00:02]} 3. Nd2 {[%emt 0:00:06]} Nf6 {[%emt 0:00:06]} 4. e5 {[%emt 0:00:03]} Nfd7 {[%emt 0:00:01]} 5. Bd3 {[%emt 0:00:06]} c5 {[%emt 0:00:02]} 6. c3 {[%emt 0:00:06]} Nc6 {[%emt 0:00:02]} 7. Ne2 {[%emt 0:00:11]} cxd4 {[%emt 0:00:02]} 8. cxd4 {[%emt 0:00:05]} f6 {[%emt 0:00:10]} 9. f4 {[%emt 0:02:09]} fxe5 {[%emt 0:00:54]} 10. fxe5 {[%emt 0:03:43]} Nxd4 {[%emt 0:00:41]} 11. O-O {[%emt 0:00:38]} Bc5 {[%emt 0:01:15]} 12. Kh1 {[%emt 0:02:49]} Nxe5 {[%emt 0:04:54]} 13. Nxd4 {[%emt 0:05:32]} Bxd4 {[%emt 0:00:07] [#]} 14. Bc2 $146 {[%emt 0:10:14] C06: French Tarrasch: 3...Nf6 4 e5 Nfd7 5 Bd3 main lines.} (14. Nb3 $1 $16 {[%cal Rb3d4]} Nxd3 15. Nxd4) ({Predecessor:} 14. Nb3 Nxd3 15. Nxd4 Nxc1 16. Qh5+ g6 17. Qe5 Rf8 18. Rxf8+ Kxf8 19. Qh8+ Ke7 20. Qxh7+ Kd6 21. Rxc1 Bd7 22. Qxg6 {0-1 (33) Calicoca,W (2190)-Volkov,S (2270) Chess.com INT 2016}) 14... Qh4 {[%emt 0:03:41][%mdl 8192] [#]} (14... Nf7 $1 $17 {and life is bright. White must now prevent ...0-0.} 15. Ba4+ (15. Qh5 Bf6 $17) 15... b5 16. Bxb5+ Bd7) 15. Nf3 $2 {[%emt 0:05:13]} (15. Ne4 $1 $18 {[%mdl 512]} dxe4 16. Qxd4) 15... Nxf3 $11 {[%emt 0:00:52]} 16. Rxf3 {[%emt 0:00:30] The position is equal.} Rf8 $2 {[%emt 0:06:38]} (16... Be5 $11 17. Rh3 Qf6) 17. Ba4+ $2 {[%emt 0:01:53]} ({White must play} 17. g3 $18 Qh3 18. Rxf8+ (18. Ba4+ Bd7 $18) 18... Kxf8 19. Qxd4 Qf1+ 20. Qg1) 17... Ke7 $1 {[%emt 0:01:54] Strongly threatening ...Rxf3.} (17... b5 $2 18. Bxb5+ Ke7 19. Rh3 $18 (19. Bg5+ Qxg5 20. Qxd4 Rxf3 $11)) 18. Rh3 {[%emt 0:01:29]} ({Much weaker is} 18. Bg5+ Qxg5 19. Qxd4 (19. Rxf8 $2 Kxf8 20. Qxd4 Kg8 $17) 19... Rxf3 20. gxf3 Kf7 $17) 18... Qg4 {[%emt 0:00:25] ( -> ...Qxd1+)} 19. Qe1 {[%emt 0:02:20] [#]} (19. Bg5+ $1 $11 Qxg5 20. Qxd4) 19... Bf2 $2 {[%emt 0:03:03]} ({Better is} 19... Rf2 $1 $19 {[%csl Gf2][%cal Rg4g2]} 20. Rg3 Qe4 21. Bg5+ Kf7) 20. Qe5 {[%emt 0:07:26] Threatening mate with Bg5+.} Qxa4 {[%emt 0:07:40]} 21. Qxg7+ {[%emt 0:00:11]} Ke8 $1 {[%emt 0:00:22][%cal Ra4d1]} 22. Bh6 {[%emt 0:00:58] Dancing on a razor blade.} Bc5 {[%emt 0:02:39]} 23. Qxh7 {[%emt 0:00:08]} Qd7 $2 {[%emt 0:00:36] [#]} (23... Rf5 $11 {and Black has nothing to worry.} 24. Rg3 Be7 25. Rg8+ (25. Rg7 $2 Qh4 $19) 25... Kd7) 24. Bxf8 $2 {[%emt 0:00:52]} (24. Qc2 $1 $18 Qf7 25. Rf3 (25. Qxc5 Qf1+ 26. Rxf1 Rxf1+ 27. Qg1 Rxg1+ 28. Kxg1 Ke7 $14)) 24... Bxf8 $4 {[%emt 0:00:39][%mdl 8192]} (24... Qxh7 $11 {and Black is okay.} 25. Rxh7 Kxf8 26. Rf1+ Kg8) 25. Qc2 $18 {[%emt 0:01:21] And now Rf1 would win.} e5 $2 {[%emt 0:03:53]} (25... Qd6 26. Rf1 Be7 27. Rh8+ Kd7) 26. Rf1 {[%emt 0:00:17] Threatens to win with Qg6+. White is clearly winning.} e4 {[%emt 0:00:14]} 27. Rh8 {[%emt 0:00:25] White wants to mate with Qc5.} Qg7 {[%emt 0:00:13]} 28. Rhxf8+ {[%emt 0:00:15]} Qxf8 {[%emt 0:00:01]} 29. Rxf8+ {[%emt 0:00:01]} Kxf8 {[%emt 0:00:10]} 30. Qc5+ {[%emt 0:00:05] Weighted Error Value: White=1.00/Black=1.31} 1-0

[Event "Slovakia Open 2022"]
[Site "Bratislava"]
[Date "2022.10.01"]
[Round "6.18"]
[White "Mikulas, Dusan"]
[Black "Djubek, Boris"]
[Result "1-0"]
[ECO "C46"]
[WhiteElo "2047"]
[BlackElo "1995"]
[Annotator "TA"]
[PlyCount "69"]
[EventDate "2022.09.30"]
[EventCountry "SVK"]
[SourceTitle "playchess.com"]
[Source "ChessBase"]
[SourceQuality "1"]
[TimeControl "2700+10"]

{[%evp 9,69,31,61,58,73,61,113,118,122,122,122,114,124,88,85,18,6,7,20,0,22,30,27,0,8,12,60,58,83,68,85,62,85,82,89,75,90,67,106,88,87,92,566,581,565,560,831,815,814,802,1100,1042,1884,1891,5277,5265,2295,2019,29984,29985,29991,29992]} 1. e4 {[%emt 0:00:12]} e5 {[%emt 0:00:09]} 2. Nf3 {[%emt 0:00:02]} Nc6 {[%emt 0:00:09]} 3. Nc3 {[%emt 0:00:07]} Be7 {[%emt 0:00:33]} 4. d4 {[%emt 0:00:09]} exd4 {[%emt 0:00:40]} 5. Nxd4 {[%emt 0:00:02]} Bf6 {[%emt 0:00:58]} 6. Be3 {[%emt 0:00:31] C46: 3 Nc3: Unusual Black 3rd moves.} Nge7 {[%emt 0:05:14]} 7. f4 {[%emt 0:02:20] [#] e5 is the strong threat.} Bxd4 {[%emt 0:03:32]} ({Black should play} 7... d6 $14) 8. Bxd4 $16 {[%emt 0:00:02] White is better.} Nxd4 {[%emt 0:00:02]} 9. Qxd4 {[%emt 0:00:04]} O-O {[%emt 0:00:50] [#]} 10. O-O-O $146 {[%emt 0:01:38] White is much more active. The black rooks are badly placed.} ({Predecessor:} 10. Bd3 Nc6 11. Qa4 d6 12. O-O-O Bd7 13. Qb3 Rb8 14. a3 Be6 15. Nd5 Nd4 16. Qc3 {1-0 (53) Boda,R (1591)-Birkestrand,O (1771) Bucharest 2019}) 10... d6 {[%emt 0:03:11]} 11. Bc4 {[%emt 0:02:02]} Be6 {[%emt 0:01:23]} 12. g4 {[%emt 0:03:08]} (12. Be2 $16) 12... Nc6 $11 {[%emt 0:03:08]} 13. Qd3 {[%emt 0:00:03]} Qf6 {[%emt 0:00:52]} 14. Rdf1 {[%emt 0:01:45]} Qd4 {[%emt 0:06:11]} 15. Bxe6 {[%emt 0:02:29]} fxe6 {[%emt 0:01:21]} 16. Qg3 {[%emt 0:01:46]} a6 {[%emt 0:03:38]} 17. Rd1 {[%emt 0:00:45]} Qf6 {[%emt 0:01:19]} (17... Qc4 $11 {might be stronger.}) 18. Rhf1 $14 {[%emt 0:04:23]} Rae8 {[%emt 0:02:43]} 19. h4 {[%emt 0:01:24]} b5 {[%emt 0:00:15][%cal Bb7b5,Bb5b4][%mdl 32]} 20. h5 {[%emt 0:01:53]} b4 {[%emt 0:00:46]} 21. g5 {[%emt 0:00:39]} Qe7 {[%emt 0:02:17]} 22. Ne2 {[%emt 0:00:10][%cal Bc3e2,Be2g3,Bg3h5,Bh5f6][%mdl 32]} a5 {[%emt 0:00:36]} 23. Qb3 {[%emt 0:01:42]} Kh8 {[%emt 0:04:19]} 24. Qc4 {[%emt 0:01:30]} Qd7 {[%emt 0:00:36]} 25. h6 {[%emt 0:02:01] [#] And now hxg7+ would win.} Rb8 $2 {[%emt 0:01:41][%mdl 8192] This costs Black the game.} (25... g6 $16 {is tougher.}) 26. hxg7+ $18 {[%emt 0:00:51]} Kxg7 {[%emt 0:00:06]} 27. Ng3 {[%emt 0:00:24]} Rb6 {[%emt 0:01:26]} 28. Nh5+ {[%emt 0:00:46]} Kh8 {[%emt 0:00:25]} 29. Nf6 {[%emt 0:00:19]} Qe7 {[%emt 0:00:20]} 30. e5 {[%emt 0:01:33][%cal Be4e5,Be5f6][%mdl 32]} d5 {[%emt 0:00:21] Against Qe4} 31. Qd3 {[%emt 0:00:32] White threatens Rh1 and mate.} Rxf6 {[%emt 0:00:46]} 32. exf6 {[%emt 0:00:27] Threatening mate with Rh1.} Qf7 {[%emt 0:00:12]} 33. Rh1 {[%emt 0:00:23] White wants to mate with Rh6.} Kg8 {[%emt 0:00:15]} 34. Rh6 {[%emt 0:01:44]} a4 {[%emt 0:00:25]} 35. Rdh1 {[%emt 0:00:12] Weighted Error Value: White=0.10 (very precise) /Black=0.65} 1-0

[Event "Slovakia Open 2022"]
[Site "Bratislava"]
[Date "2022.10.01"]
[Round "6.19"]
[White "Balint, Peter"]
[Black "Lecky, Juraj"]
[Result "0-1"]
[ECO "B55"]
[WhiteElo "2235"]
[BlackElo "2070"]
[Annotator "TA"]
[PlyCount "92"]
[EventDate "2022.09.30"]
[EventCountry "SVK"]
[SourceTitle "playchess.com"]
[Source "ChessBase"]
[SourceQuality "1"]
[TimeControl "2700+10"]

{[%evp 9,92,-6,22,-60,10,0,22,0,0,0,0,0,0,0,0,0,0,-8,0,-28,-10,-65,-37,-57,-48,-43,-49,-70,-45,-42,-56,-72,-39,-98,-88,-110,0,-87,-93,-114,-97,-106,-89,-100,-108,-102,-105,-110,-99,-137,-165,-177,-143,-247,-241,-225,-230,-243,-231,-456,-449,-428,-433,-679,-660,-796,-894,-891,-876,-787,-704,-701,-698,-687,-679,-870,-762,-766,-750,-2205,-2295,-2884,-2739,-29991,-29992]} 1. e4 {[%emt 0:00:03] Edouard,Romain} c5 {[%emt 0:00:00]} 2. Nf3 {[%emt 0:00:01]} d6 {[%emt 0:00:10]} 3. d4 {[%emt 0:00:01]} cxd4 {[%emt 0:00:00]} 4. Nxd4 {[%emt 0:00:01]} Nf6 {[%emt 0:00:00]} 5. Qd3 {[%emt 0:00:04]} Nbd7 {[%emt 0:00:08][%cal Bb8d7,Bd7c5,Bc5e4][%mdl 32]} 6. Be2 {[%emt 0:00:06] B55: Sicilian: 2...d6 3 d4 cxd4 4 Nxd4 Nf6 5 f3.} (6. Nc3 $11) 6... a6 {[%emt 0:00:20]} (6... Nc5 $1 $15 7. Qe3 (7. Qb5+ Bd7 $17) 7... e5) 7. Nc3 $11 {[%emt 0:00:09]} b5 {[%emt 0:01:22]} 8. a4 {[%emt 0:00:21] The position is equal.} Nc5 {[%emt 0:02:59]} 9. Qe3 {[%emt 0:02:17]} b4 {[%emt 0:00:18]} 10. Nd5 {[%emt 0:00:51]} Ncxe4 {[%emt 0:00:01] [#]} 11. Nxb4 $146 {[%emt 0:02:29]} ({Predecessor:} 11. a5 Nxd5 12. Qxe4 e6 13. O-O Bd7 14. Bd2 Be7 15. Bf3 O-O 16. Qd3 Qb8 17. c4 bxc3 18. bxc3 {1-0 (47) Van Foreest,J (2671)-Grandelius,N (2663) Wijk aan Zee 2021 CBM 201 Extra [Edouard,Romain]}) 11... Bb7 {[%emt 0:07:15]} 12. f3 {[%emt 0:01:25]} Nc5 {[%emt 0:03:15]} 13. O-O {[%emt 0:00:47]} e6 {[%emt 0:03:24]} 14. b3 {[%emt 0:01:51]} Qc7 {[%emt 0:00:40]} 15. Nf5 {[%emt 0:01:54]} ({Better is} 15. c4 $11) 15... g6 {[%emt 0:05:47]} 16. Bb2 {[%emt 0:01:17]} Ncd7 {[%emt 0:00:01]} 17. Ng3 {[%emt 0:06:15]} Bg7 {[%emt 0:04:22]} 18. Nd3 {[%emt 0:05:35]} O-O {[%emt 0:00:40]} 19. c4 {[%emt 0:00:51]} a5 {[%emt 0:01:03]} 20. Rfd1 {[%emt 0:00:39]} Rfd8 {[%emt 0:02:25]} 21. Ba3 {[%emt 0:02:07]} (21. Rac1 $15) 21... d5 $17 {[%emt 0:06:57]} 22. Rac1 {[%emt 0:01:41]} d4 {[%emt 0:00:01]} (22... dxc4 $17 {Threatens to win with ...Nd5.} 23. bxc4 Bc6) 23. Qg5 {[%emt 0:01:53] Against Nd5} (23. Qxd4 $11 {remains equal.} Nd5 24. Qf2) 23... h6 {[%emt 0:01:48] White is on the road to losing.} 24. Qd2 {[%emt 0:00:18]} e5 {[%emt 0:00:16]} 25. Nf2 {[%emt 0:04:18]} Nc5 $36 {[%emt 0:00:29][%mdl 2048] Black is really pushing.} 26. Bxc5 {[%emt 0:00:23]} Qxc5 {[%emt 0:00:00]} 27. Bd3 {[%emt 0:00:03]} Rab8 {[%emt 0:00:25]} 28. Rb1 {[%emt 0:00:21]} Nd7 {[%emt 0:00:17]} 29. Nge4 {[%emt 0:00:30]} Qc7 {[%emt 0:00:30]} 30. c5 {[%emt 0:01:32]} f5 {[%emt 0:00:30][%cal Bf7f5,Bf5e4][%mdl 32]} ({Inferior is} 30... Nxc5 31. Nxc5 Qxc5 32. b4 axb4 33. Qxb4 $17) 31. Bc4+ {[%emt 0:00:05]} (31. Nd6 $17) 31... Kh7 $19 {[%emt 0:00:01]} 32. Nd6 {[%emt 0:00:27]} Nxc5 {[%emt 0:00:12]} 33. Nxb7 {[%emt 0:00:01]} Rxb7 {[%emt 0:00:07]} ({Don't go for} 33... Nxb7 $2 34. Bb5) 34. Rdc1 $2 {[%emt 0:00:33]} (34. Qe2 {was called for.}) 34... e4 {[%emt 0:02:03]} 35. fxe4 {[%emt 0:00:41]} fxe4 {[%emt 0:00:01] aiming for ...e3.} 36. Qd1 {[%emt 0:01:18]} (36. Qe1 $142 Qe7 37. Kh1) 36... Qe5 {[%emt 0:01:29]} 37. Bb5 {[%emt 0:00:59]} d3 {[%emt 0:00:33]} 38. Ng4 {[%emt 0:03:17]} Qd4+ {[%emt 0:00:07]} 39. Kh1 {[%emt 0:00:01]} h5 {[%emt 0:00:05]} 40. Rc4 {[%emt 0:00:07]} Qd6 {[%emt 0:00:56]} 41. Ne3 {[%emt 0:00:27]} Bd4 {[%emt 0:00:04]} 42. Qd2 {[%emt 0:00:58]} Qf4 {[%emt 0:00:01] Prevents Qf2.} 43. Rxd4 {[%emt 0:00:38]} Rxd4 {[%emt 0:00:06]} 44. Bc4 {[%emt 0:00:30] [#]} Rxc4 $1 {[%emt 0:00:21]} 45. Rf1 {[%emt 0:00:11] [#]} (45. g3 Qf3+) 45... Rc2 $1 {[%emt 0:00:35]} 46. Qxc2 {[%emt 0:00:22]} (46. Rxf4 Rxd2) 46... Qxf1+ {[%emt 0:00:03] Weighted Error Value: White=0.73/Black=0.16 (very precise)} 0-1

[Event "Slovakia Open 2022"]
[Site "Bratislava"]
[Date "2022.10.01"]
[Round "6.20"]
[White "Chlpek, Daniel"]
[Black "Krajnak, Robert"]
[Result "1/2-1/2"]
[ECO "B28"]
[WhiteElo "2020"]
[BlackElo "1931"]
[Annotator "TA"]
[PlyCount "44"]
[EventDate "2022.09.30"]
[EventCountry "SVK"]
[SourceTitle "playchess.com"]
[Source "ChessBase"]
[SourceQuality "1"]
[TimeControl "2700+10"]

{[%evp 9,44,28,66,62,66,23,71,30,40,-1,39,38,36,34,23,0,19,6,12,9,426,-8,-10,-20,134,65,156,156,138,74,464,464,1186,1210,1304,958,852]} 1. e4 {[%emt 0:00:03]} c5 {[%emt 0:00:10]} 2. Nf3 {[%emt 0:00:03]} a6 {[%emt 0:00:00]} 3. d4 {[%emt 0:03:34]} cxd4 {[%emt 0:00:04]} 4. Nxd4 {[%emt 0:00:10]} Nc6 {[%emt 0:00:10]} 5. Nc3 {[%emt 0:00:10]} Nxd4 {[%emt 0:00:10]} 6. Qxd4 {[%emt 0:00:10] B28: Sicilian: 2 Nf3 a6 (O'Kelly Variation).} e6 {[%emt 0:00:10] [#] Inhibits Nd5.} 7. Qd3 $146 {[%emt 0:00:10] White is much more active.} ({Predecessor:} 7. Bf4 Ne7 8. O-O-O Nc6 9. Qe3 Qa5 10. Qg3 b5 11. Bc7 Qb4 12. Nd5 exd5 13. exd5 Nd8 14. Bd3 d6 15. Rhe1+ Kd7 16. Bb6 Be7 17. Re4 Qxe4 18. Bxe4 g6 19. Re1 Rb8 20. Qe3 {1-0 (20) Savitskiy,S (2420)-Yeritsyan,H (2231) Cheliabinsk 2022}) 7... Ne7 {[%emt 0:00:10]} (7... b5 $11 {feels stronger.}) 8. a3 {[%emt 0:03:22] White is better.} b5 {[%emt 0:02:34]} 9. Qe3 {[%emt 0:00:14]} Nc6 {[%emt 0:00:10]} 10. Qg3 {[%emt 0:00:10]} Qf6 {[%emt 0:01:34]} 11. Bg5 {[%emt 0:04:12]} Qg6 {[%emt 0:00:40]} 12. Bd3 {[%emt 0:03:18] Strongly threatening e5.} h6 {[%emt 0:00:35]} 13. Bf4 $36 {[%emt 0:00:04][%mdl 2048] White has good play.} Qxg3 {[%emt 0:01:48]} 14. Bxg3 {[%emt 0:00:01]} Ne5 $2 {[%emt 0:03:02][%mdl 8192]} 15. O-O $2 {[%emt 0:00:20]} (15. Bxe5 $18 Bb7 16. Be2) 15... Nxd3 $11 {[%emt 0:00:10]} 16. cxd3 {[%emt 0:00:10]} b4 $2 {[%emt 0:00:10] [#]} (16... Be7 $11) 17. axb4 {[%emt 0:00:10]} (17. Na4 $1 $16 {[%cal Ra4b6]}) 17... Be7 {[%emt 0:00:10]} (17... Bxb4 $14 18. Na4 d6) 18. Nb5 $16 {[%emt 0:00:22] Hoping for Nc7+.} O-O {[%emt 0:00:25] [#]} 19. Bd6 {[%emt 0:05:02]} ({Better is} 19. Nc7 $1 {[%cal Rc7a8]} Ra7 20. b5) 19... Re8 $2 {[%emt 0:04:01][%mdl 8192]} (19... axb5 $16 {is a better chance.} 20. Bxe7 Rxa1 21. Rxa1 Re8) 20. Bxe7 $18 {[%emt 0:00:00] White is clearly winning.} axb5 {[%emt 0:00:25]} (20... Rxe7 $142 21. Nd6 Rb8) 21. Rxa8 {[%emt 0:00:10]} f6 {[%emt 0:00:10]} 22. h4 {[%emt 0:03:43][%cal Of1c1] Rc1! is the strong threat.} Kf7 {[%emt 0:04:08][%mdl 32768] Weighted Error Value: White=0.56/Black=1.06. An unexpected result.} 1/2-1/2